bitfinex-derivatives/quotes_BTCF0:USTF0_20260127
["timestamp","ask_amount","ask_price","bid_price","bid_amount"]
[1769517347726,0.00968536,88091.0,88081.0,0.011368]
[1769517348226,0.00968536,88096.0,88081.0,0.01793919]
[1769517348412,0.00968536,88095.0,88081.0,0.00657119]
[1769517348818,0.10228,88097.0,88081.0,0.00657119]
[1769517349018,0.10228,88098.0,88081.0,0.00657119]
[1769517349218,0.11196536,88098.0,88081.0,0.00657119]
[1769517349427,0.00968536,88097.0,88083.0,0.011368]
[1769517352231,0.00968536,88097.0,88081.0,0.00657119]
[1769517354325,0.00968536,88097.0,88081.0,0.01793919]
[1769517359039,0.00991967,88094.0,88081.0,0.00657119]
[1769517361935,0.00991967,88093.0,88077.0,0.011369]
[1769517362140,0.00991967,88082.0,88069.0,0.22698928]
[1769517362332,0.00991967,88082.0,88068.0,0.23835928]
[1769517362639,0.00991967,88082.0,88068.0,0.34063928]
[1769517362936,0.00991967,88082.0,88069.0,0.00691411]
[1769517363139,0.00991967,88082.0,88069.0,0.01828311]
[1769517363333,0.00991967,88082.0,88070.0,0.011369]
[1769517363522,0.00991967,88082.0,88070.0,0.01828311]
[1769517364339,0.00991967,88082.0,88071.0,0.011369]
[1769517367644,0.00991967,88082.0,88070.0,0.00691411]
[1769517367844,0.00991967,88082.0,88068.0,0.11365]
[1769517368046,0.00991967,88082.0,88068.0,0.12136227]
[1769517368242,0.00991967,88082.0,88069.0,0.00749501]
[1769517369744,0.00991967,88082.0,88068.0,0.11365]
[1769517369934,0.00991967,88082.0,88068.0,0.12114501]
[1769517370133,0.00991967,88082.0,88069.0,0.0074341]
[1769517376443,0.00991967,88082.0,88071.0,0.011369]
[1769517376644,0.00991967,88082.0,88069.0,0.0074341]
[1769517377054,0.00991967,88087.0,88069.0,0.0074341]
[1769517377249,0.00991967,88087.0,88075.0,0.011369]
[1769517379151,0.00991967,88087.0,88072.0,0.01885068]
[1769517379345,0.00991967,88087.0,88072.0,0.00748168]
[1769517380354,0.00991967,88087.0,88073.0,0.011369]
[1769517381455,0.00991967,88087.0,88073.0,0.02028274]
[1769517384653,0.00991967,88087.0,88075.0,0.00902042]
[1769517399760,0.00991967,88087.0,88070.0,0.02046941]
[1769517399960,0.00991967,88087.0,88071.0,0.00910041]
[1769517400160,0.00949352,88086.0,88071.0,0.02046941]
[1769517401066,0.00949352,88086.0,88071.0,0.00910041]
[1769517401359,0.10228,88092.0,88071.0,0.00910041]
[1769517401360,0.02086152,88085.0,88071.0,0.00910041]
[1769517401565,0.00949352,88084.0,88071.0,0.00910041]
[1769517402168,0.02086152,88083.0,88071.0,0.00910041]
[1769517402368,0.00949352,88083.0,88071.0,0.00910041]
[1769517402956,0.011367,88085.0,88071.0,0.00910041]
[1769517403355,0.02086052,88085.0,88071.0,0.00910041]
[1769517403561,0.00949352,88085.0,88071.0,0.00910041]
[1769517405460,0.11750804,88090.0,88069.0,0.11024141]
[1769517405461,0.00949352,88084.0,88069.0,0.11024141]
[1769517405662,0.00949352,88084.0,88070.0,0.00796141]
[1769517406669,0.02086152,88084.0,88070.0,0.00796141]
[1769517406854,0.00949352,88083.0,88064.0,0.01151951]
[1769517407058,0.00949352,88081.0,88066.0,0.00798881]
[1769517409267,0.00949352,88081.0,88067.0,0.00751032]
[1769517410271,0.00949352,88081.0,88069.0,0.00750257]
[1769517413587,0.00949352,88081.0,88069.0,0.01887157]
[1769517413784,0.00949352,88081.0,88070.0,0.011369]
[1769517414488,0.00949352,88081.0,88069.0,0.00750257]
[1769517414689,0.00949352,88081.0,88069.0,0.01887157]
[1769517415382,0.00949352,88081.0,88069.0,0.00750257]
[1769517415587,0.00949352,88081.0,88067.0,0.10228]
[1769517415588,0.00993877,88085.0,88071.0,0.007516]
[1769517416388,0.00993877,88085.0,88072.0,0.00751548]
[1769517416889,0.011365,88105.0,88085.0,0.00907532]
[1769517417090,0.011366,88097.0,88085.0,0.00907532]
[1769517417276,0.011366,88100.0,88085.0,0.00907532]
[1769517417588,0.10228,88106.0,88085.0,0.00907532]
[1769517417775,0.011365,88101.0,88085.0,0.00907532]
[1769517417973,0.10228,88106.0,88081.0,0.00907532]
[1769517418177,0.11445705,88105.0,88081.0,0.00907532]
[1769517418388,0.011366,88100.0,88081.0,0.00907532]
[1769517418983,0.00993877,88099.0,88081.0,0.00907532]
[1769517419791,0.00993877,88097.0,88081.0,0.00907532]
[1769517420181,0.00993877,88097.0,88081.0,0.02044332]
[1769517420981,0.00993877,88097.0,88084.0,0.011368]
[1769517421177,0.00993877,88097.0,88086.0,0.011367]
[1769517422190,0.00993877,88097.0,88083.0,0.02044332]
[1769517422582,0.00993877,88092.0,88072.0,0.00907532]
[1769517422885,0.00993877,88088.0,88074.0,0.011369]
[1769517423085,0.00993877,88088.0,88075.0,0.10228]
[1769517423479,0.00993877,88096.0,88078.0,0.00907532]
[1769517425891,0.00993877,88094.0,88078.0,0.00907532]
[1769517429200,0.00993877,88094.0,88079.0,0.011368]
[1769517431600,0.00993877,88094.0,88079.0,0.02044332]
[1769517434302,0.00993877,88094.0,88079.0,0.00907532]
[1769517435199,0.00993877,88091.0,88075.0,0.10228]
[1769517435604,0.011367,88090.0,88075.0,0.10228]
[1769517435805,0.02130577,88090.0,88075.0,0.11135532]
[1769517436405,0.00993877,88090.0,88076.0,0.011369]
[1769517437105,0.00993877,88090.0,88076.0,0.02044432]
[1769517437305,0.00993877,88090.0,88076.0,0.00907532]
[1769517437906,0.00993877,88090.0,88076.0,0.02044432]
[1769517438206,0.00993877,88089.0,88076.0,0.00907532]
[1769517439309,0.00993877,88087.0,88073.0,0.10228]
[1769517439506,0.00993877,88085.0,88073.0,0.10228]
[1769517444210,0.02130677,88085.0,88073.0,0.10228]
[1769517444402,0.011368,88083.0,88073.0,0.10228]
[1769517445006,0.02130677,88085.0,88073.0,0.10228]
[1769517445505,0.00993877,88085.0,88073.0,0.10228]
[1769517445704,0.02130677,88085.0,88073.0,0.10228]
[1769517446613,0.00993877,88085.0,88073.0,0.10228]
[1769517448312,0.02130677,88085.0,88073.0,0.10228]
[1769517448916,0.011368,88083.0,88073.0,0.10228]
[1769517450310,0.011368,88083.0,88073.0,0.1117992]
[1769517450719,0.011367,88086.0,88074.0,0.0095192]
[1769517450920,0.011368,88085.0,88074.0,0.0095192]
[1769517451221,0.00943924,88084.0,88061.0,0.0095192]
[1769517451420,0.00943924,88084.0,88043.0,0.10228]
[1769517451421,0.00943924,88069.0,88052.0,0.02623921]
[1769517451621,0.00943924,88067.0,88052.0,0.03575841]
[1769517451816,0.00943924,88071.0,88053.0,0.0095192]
[1769517452010,0.00943924,88069.0,88053.0,0.0095192]
[1769517452420,0.02080924,88068.0,88053.0,0.0095192]
[1769517452715,0.00943924,88067.0,88053.0,0.0095192]
[1769517453526,0.01137,88066.0,88053.0,0.0095192]
[1769517454527,0.00943924,88067.0,88053.0,0.0095192]
[1769517459229,0.00943924,88071.0,88053.0,0.0095192]
[1769517460329,0.00943924,88071.0,88054.0,0.011371]
[1769517460529,0.00943924,88071.0,88055.0,0.0095192]
[1769517464232,0.00943924,88071.0,88057.0,0.0095192]
[1769517467836,0.00943924,88071.0,88058.0,0.0095192]
[1769517475342,0.02080824,88071.0,88058.0,0.0095192]
[1769517477442,0.00943924,88071.0,88058.0,0.0095192]
[1769517478343,0.01137,88069.0,88058.0,0.0095192]
[1769517481739,0.01137,88068.0,88058.0,0.0095192]
[1769517482443,0.00956551,88069.0,88048.0,0.00906383]
[1769517482642,0.00956551,88069.0,88047.0,0.01136281]
[1769517482643,0.00956551,88069.0,88051.0,0.11138383]
[1769517482941,0.011369,88070.0,88053.0,0.00906383]
[1769517483144,0.01137,88067.0,88053.0,0.00906383]
[1769517483333,0.00956551,88068.0,88051.0,0.10232]
[1769517483733,0.011371,88060.0,88051.0,0.10232]
[1769517484842,0.00956551,88062.0,88051.0,0.00906383]
[1769517485945,0.01137,88063.0,88051.0,0.00906383]
[1769517488935,0.011371,88059.0,88051.0,0.00906383]
[1769517492233,0.011371,88061.0,88051.0,0.00906383]
[1769517492436,0.01137,88063.0,88051.0,0.00906383]
[1769517494857,0.011371,88061.0,88051.0,0.00906383]
[1769517496551,0.011371,88060.0,88051.0,0.00906383]
[1769517496863,0.01137,88064.0,88051.0,0.00906383]
[1769517497760,0.01137,88063.0,88051.0,0.00906383]
[1769517498662,0.011371,88062.0,88051.0,0.00906383]
[1769517499361,0.00956551,88063.0,88051.0,0.00906383]
[1769517502258,0.01137,88066.0,88051.0,0.00906383]
[1769517502454,0.0210497,88066.0,88051.0,0.00906383]
[1769517502655,0.01137,88065.0,88051.0,0.00906383]
[1769517502861,0.01137,88063.0,88051.0,0.00906383]
[1769517505353,0.0209557,88063.0,88051.0,0.00906383]
[1769517506359,0.0095857,88062.0,88051.0,0.00906383]
[1769517516667,0.011371,88061.0,88051.0,0.00906383]
[1769517516868,0.0095857,88062.0,88047.0,0.1121461]
[1769517517369,0.0095857,88062.0,88048.0,0.0098261]
[1769517518269,0.0209567,88062.0,88048.0,0.0098261]
[1769517519872,0.0095857,88061.0,88048.0,0.0098261]
[1769517520573,0.011371,88060.0,88048.0,0.0098261]
[1769517521882,0.0095857,88061.0,88048.0,0.0098261]
[1769517524188,0.011371,88060.0,88048.0,0.0098261]
[1769517524391,0.0209567,88060.0,88048.0,0.0098261]
[1769517524590,0.0209567,88060.0,88047.0,0.10232]
[1769517524591,0.0095857,88059.0,88047.0,0.10232]
[1769517524990,0.011371,88058.0,88047.0,0.10232]
[1769517525691,0.011371,88058.0,88048.0,0.0098261]
[1769517526493,0.011371,88058.0,88044.0,0.0098261]
[1769517526699,0.0095857,88059.0,88046.0,0.0098261]
[1769517530087,0.01137,88067.0,88052.0,0.0098261]
[1769517530296,0.12354314,88066.0,88053.0,0.011372]
[1769517530601,0.13312884,88065.0,88053.0,0.011372]
[1769517530898,0.0095857,88065.0,88053.0,0.011372]
[1769517531299,0.0095857,88065.0,88052.0,0.0098261]
[1769517531598,0.0209557,88065.0,88052.0,0.0098261]
[1769517532188,0.0095857,88064.0,88052.0,0.0098261]
[1769517534695,0.12334383,88063.0,88052.0,0.0098261]
[1769517534997,0.0095857,88064.0,88049.0,0.12679218]
[1769517535200,0.12334403,88063.0,88050.0,0.00922177]
[1769517535386,0.0095857,88064.0,88050.0,0.00922177]
[1769517535588,0.12334431,88063.0,88050.0,0.00922177]
[1769517535793,0.0095857,88064.0,88050.0,0.00922177]
[1769517535993,0.1233443,88063.0,88050.0,0.00922177]
[1769517536194,0.0095857,88064.0,88050.0,0.00922177]
[1769517536397,0.12334443,88063.0,88051.0,0.011372]
[1769517536600,0.0095857,88064.0,88051.0,0.011372]
[1769517536792,0.12334443,88063.0,88050.0,0.00922177]
[1769517536998,0.0095857,88064.0,88050.0,0.02059377]
[1769517537200,0.12334443,88063.0,88050.0,0.02059377]
[1769517537390,0.0095857,88064.0,88050.0,0.02059377]
[1769517537699,0.12334453,88063.0,88050.0,0.02059377]
[1769517537887,0.0095857,88064.0,88050.0,0.02059377]
[1769517538089,0.12334453,88063.0,88050.0,0.02059377]
[1769517538399,0.0095857,88064.0,88050.0,0.02059377]
[1769517538585,0.12334415,88063.0,88050.0,0.02059377]
[1769517538789,0.0095857,88064.0,88050.0,0.02059377]
[1769517539905,0.0095857,88064.0,88050.0,0.00922177]
[1769517540391,0.0095857,88064.0,88050.0,0.02059377]
[1769517540593,0.0095857,88064.0,88050.0,0.00922177]
[1769517540993,0.0209557,88064.0,88050.0,0.00922177]
[1769517542493,0.0095857,88064.0,88050.0,0.00922177]
[1769517543500,0.0209557,88064.0,88050.0,0.00922177]
[1769517544418,0.00944595,88063.0,88050.0,0.00922177]
[1769517556604,0.00944595,88063.0,88051.0,0.011372]
[1769517559016,0.00944595,88063.0,88050.0,0.00922177]
[1769517562411,0.00944595,88063.0,88050.0,0.12679218]
[1769517563120,0.00974575,88061.0,88048.0,0.10232]
[1769517563517,0.00974575,88061.0,88049.0,0.00909308]
[1769517564318,0.00974575,88061.0,88045.0,0.113693]
[1769517566719,0.00924395,88058.0,88045.0,0.10232]
[1769517571520,0.02061495,88058.0,88045.0,0.10232]
[1769517571922,0.00924395,88058.0,88045.0,0.10232]
[1769517572420,0.02061495,88058.0,88045.0,0.10232]
[1769517572620,0.00924395,88058.0,88045.0,0.10232]
[1769517572825,0.00924395,88058.0,88045.0,0.37924]
[1769517579036,0.00924395,88058.0,88045.0,0.38830367]
[1769517579329,0.00924395,88058.0,88045.0,0.39967667]
[1769517579725,0.011371,88061.0,88045.0,0.39967667]
[1769517581329,0.011371,88061.0,88046.0,0.00906367]
[1769517581530,0.01137,88066.0,88051.0,0.00906367]
[1769517581729,0.12006273,88065.0,88051.0,0.00906367]
[1769517581929,0.01137,88066.0,88051.0,0.00906367]
[1769517582129,0.12006347,88065.0,88051.0,0.00906367]
[1769517582432,0.00924395,88067.0,88054.0,0.00906367]
[1769517582632,0.12006213,88066.0,88054.0,0.00906367]
[1769517582831,0.12006213,88065.0,88054.0,0.00906367]
[1769517583033,0.00924395,88067.0,88054.0,0.00906367]
[1769517583224,0.1200622,88066.0,88054.0,0.00906367]
[1769517583425,0.1200622,88065.0,88054.0,0.00906367]
[1769517583631,0.00924395,88067.0,88054.0,0.00906367]
[1769517583830,0.12006225,88066.0,88054.0,0.00906367]
[1769517584033,0.12006225,88065.0,88054.0,0.00906367]
[1769517584233,0.00924395,88067.0,88054.0,0.00906367]
[1769517584533,0.12006202,88066.0,88054.0,0.00906367]
[1769517584733,0.12006202,88065.0,88054.0,0.00906367]
[1769517584933,0.00924395,88067.0,88054.0,0.00906367]
[1769517585143,0.12006196,88066.0,88054.0,0.00906367]
[1769517585443,0.12006196,88065.0,88054.0,0.00906367]
[1769517585633,0.00924395,88067.0,88054.0,0.00906367]
[1769517585830,0.12006165,88066.0,88054.0,0.00906367]
[1769517586035,0.12006165,88065.0,88054.0,0.00906367]
[1769517586235,0.10232,88068.0,88054.0,0.00906367]
[1769517586436,0.12006136,88067.0,88054.0,0.00906367]
[1769517586637,0.12006136,88066.0,88054.0,0.00906367]
[1769517586846,0.12006136,88065.0,88054.0,0.00906367]
[1769517587047,0.10232,88068.0,88054.0,0.00906367]
[1769517587247,0.12006147,88067.0,88054.0,0.00906367]
[1769517587449,0.12006147,88066.0,88054.0,0.00906367]
[1769517587744,0.12006147,88065.0,88054.0,0.00906367]
[1769517587947,0.01137,88065.0,88054.0,0.00906367]
[1769517588337,0.02061395,88067.0,88054.0,0.00906367]
[1769517588535,0.12006197,88066.0,88054.0,0.00906367]
[1769517588734,0.12006197,88065.0,88054.0,0.00906367]
[1769517588946,0.02061395,88067.0,88054.0,0.00906367]
[1769517589149,0.12930593,88066.0,88054.0,0.00906367]
[1769517589342,0.12006198,88065.0,88054.0,0.00906367]
[1769517589542,0.00924395,88066.0,88054.0,0.00906367]
[1769517589743,0.12006142,88065.0,88054.0,0.00906367]
[1769517589947,0.00924395,88066.0,88054.0,0.00906367]
[1769517590148,0.12006142,88065.0,88054.0,0.00906367]
[1769517590349,0.00924395,88066.0,88054.0,0.00906367]
[1769517590550,0.12006145,88065.0,88054.0,0.00906367]
[1769517590843,0.12006145,88065.0,88047.0,0.00906367]
[1769517590844,0.01137,88065.0,88047.0,0.00906367]
[1769517591049,0.01137,88063.0,88047.0,0.00906367]
[1769517591850,0.00924395,88065.0,88047.0,0.00906367]
[1769517592053,0.01137,88064.0,88047.0,0.00906367]
[1769517594142,0.02088349,88064.0,88047.0,0.00906367]
[1769517594444,0.00951349,88064.0,88047.0,0.00906367]
[1769517594643,0.00951349,88064.0,88048.0,0.00984786]
[1769517596852,0.00951349,88064.0,88049.0,0.00984786]
[1769517601161,0.01137,88063.0,88049.0,0.00984786]
[1769517601460,0.02088349,88064.0,88049.0,0.00984786]
[1769517603157,0.00951349,88063.0,88049.0,0.00984786]
[1769517605667,0.00951349,88060.0,88045.0,0.11216786]
[1769517605873,0.011371,88061.0,88046.0,0.00984786]
[1769517606056,0.00951349,88063.0,88046.0,0.00984786]
[1769517613968,0.00951349,88063.0,88047.0,0.00984786]
[1769517614367,0.00951349,88063.0,88049.0,0.00984786]
[1769517620567,0.12320349,88069.0,88050.0,0.00984786]
[1769517620769,0.11989411,88068.0,88050.0,0.00984786]
[1769517620961,0.1294076,88067.0,88050.0,0.00984786]
[1769517621166,0.1294076,88066.0,88050.0,0.00984786]
[1769517621371,0.00951349,88066.0,88050.0,0.00984786]
[1769517621665,0.00951349,88066.0,88051.0,0.02121986]
[1769517622459,0.11990288,88065.0,88051.0,0.02121986]
[1769517622665,0.11990288,88064.0,88051.0,0.02121986]
[1769517622860,0.00951349,88066.0,88051.0,0.02121986]
[1769517623061,0.11369,88069.0,88051.0,0.02121986]
[1769517623062,0.00969443,88064.0,88051.0,0.00984786]
[1769517625468,0.011371,88061.0,88051.0,0.00984786]
[1769517625675,0.00967973,88063.0,88051.0,0.00984786]
[1769517625864,0.00967973,88063.0,88047.0,0.00930446]
[1769517626773,0.01137,88062.0,88048.0,0.00930446]
[1769517627074,0.02104973,88063.0,88048.0,0.00930446]
[1769517627258,0.02104973,88063.0,88044.0,0.40880686]
[1769517627259,0.00967973,88062.0,88045.0,0.10232]
[1769517627662,0.10232,88069.0,88045.0,0.10232]
[1769517627663,0.00967973,88058.0,88045.0,0.10232]
[1769517628670,0.00967973,88058.0,88045.0,0.11162446]
[1769517633073,0.00967973,88058.0,88046.0,0.00930446]
[1769517634373,0.00967973,88062.0,88046.0,0.00930446]
[1769517634773,0.00967973,88062.0,88046.0,0.02067746]
[1769517635073,0.00967973,88062.0,88050.0,0.011372]
[1769517635267,0.00967973,88062.0,88047.0,0.02067646]
[1769517635468,0.00967973,88062.0,88048.0,0.011372]
[1769517636466,0.00967973,88062.0,88050.0,0.011372]
[1769517636666,0.00967973,88062.0,88047.0,0.00930446]
[1769517637161,0.00967973,88062.0,88048.0,0.00930446]
[1769517639476,0.00967973,88062.0,88047.0,0.011372]
[1769517642482,0.00967973,88062.0,88048.0,0.00930446]
[1769517643079,0.00967973,88062.0,88049.0,0.011372]
[1769517645179,0.00967973,88062.0,88048.0,0.00930446]
[1769517648482,0.00967973,88062.0,88050.0,0.11756267]
[1769517650682,0.00967973,88062.0,88049.0,0.011372]
[1769517651185,0.00967973,88062.0,88048.0,0.00930446]
[1769517651377,0.00967973,88062.0,88048.0,0.02067646]
[1769517654076,0.00967973,88062.0,88048.0,0.00930446]
[1769517654682,0.00933527,88060.0,88048.0,0.00930446]
[1769517655488,0.02070527,88064.0,88048.0,0.00930446]
[1769517655684,0.00933527,88063.0,88048.0,0.00930446]
[1769517655881,0.00933527,88063.0,88048.0,0.02067646]
[1769517657387,0.00933527,88063.0,88049.0,0.00931435]
[1769517659884,0.00933527,88063.0,88049.0,0.02068635]
[1769517660290,0.00933527,88063.0,88044.0,0.38256]
[1769517660491,0.00933527,88063.0,88049.0,0.011372]
[1769517661197,0.00933527,88063.0,88052.0,0.011372]
[1769517661387,0.00933527,88063.0,88050.0,0.12893467]
[1769517661788,0.00933527,88063.0,88050.0,0.13824902]
[1769517662095,0.10232,88065.0,88050.0,0.12687702]
[1769517663902,0.00933527,88064.0,88050.0,0.12687702]
[1769517665003,0.02070527,88064.0,88050.0,0.12687702]
[1769517665198,0.00933527,88063.0,88050.0,0.12687702]
[1769517666405,0.00933527,88063.0,88050.0,0.00931435]
[1769517666597,0.011371,88062.0,88050.0,0.00931435]
[1769517667602,0.00933527,88063.0,88050.0,0.00931435]
[1769517668306,0.01137,88062.0,88050.0,0.00931435]
[1769517669303,0.02070527,88062.0,88050.0,0.00931435]
[1769517669504,0.00933527,88061.0,88050.0,0.00931435]
[1769517672007,0.011371,88060.0,88045.0,0.00931435]
[1769517672304,0.02070627,88060.0,88045.0,0.00931435]
[1769517672899,0.00933527,88059.0,88045.0,0.00931435]
[1769517674005,0.011371,88060.0,88045.0,0.00931435]
[1769517675301,0.00933527,88061.0,88045.0,0.00931435]
[1769517675901,0.00933527,88059.0,88045.0,0.00931435]
[1769517678807,0.011371,88062.0,88046.0,0.00931435]
[1769517679009,0.00933527,88061.0,88046.0,0.00931435]
[1769517679210,0.00933527,88061.0,88047.0,0.00931435]
[1769517681215,0.01137,88064.0,88047.0,0.00931435]
[1769517681416,0.11920777,88063.0,88047.0,0.00931435]
[1769517681617,0.02127693,88064.0,88047.0,0.00931435]
[1769517681817,0.00990693,88061.0,88047.0,0.00931435]
[1769517682019,0.10232,88065.0,88047.0,0.00931435]
[1769517682020,0.011371,88059.0,88047.0,0.00931435]
[1769517682218,0.02127793,88059.0,88047.0,0.00931435]
[1769517682511,0.00990693,88059.0,88047.0,0.00931435]
[1769517682913,0.02127793,88059.0,88047.0,0.00931435]
[1769517683220,0.00990693,88059.0,88047.0,0.00931435]
[1769517687420,0.011371,88057.0,88047.0,0.00931435]
[1769517689728,0.00990693,88059.0,88047.0,0.00931435]
[1769517690026,0.011371,88057.0,88047.0,0.00931435]
[1769517690228,0.011371,88057.0,88043.0,0.00993814]
[1769517690626,0.02058983,88057.0,88043.0,0.00993814]
[1769517693631,0.00921883,88056.0,88040.0,0.59757567]
[1769517694232,0.011372,88052.0,88041.0,0.00993814]
[1769517694429,0.02059083,88052.0,88039.0,0.02624868]
[1769517694625,0.02059083,88050.0,88039.0,0.02624868]
[1769517694827,0.00921883,88049.0,88037.0,0.00993814]
[1769517695225,0.00921883,88049.0,88038.0,0.02625134]
[1769517695730,0.00921883,88049.0,88037.0,0.00993814]
[1769517695930,0.00921883,88049.0,88038.0,0.02625134]
[1769517696331,0.00921883,88049.0,88037.0,0.00993814]
[1769517696533,0.00921883,88049.0,88038.0,0.02625134]
[1769517697032,0.00921883,88049.0,88037.0,0.00993814]
[1769517697237,0.00921883,88049.0,88038.0,0.02625134]
[1769517697735,0.00921883,88049.0,88036.0,0.10232]
[1769517698032,0.00921883,88049.0,88037.0,0.02624994]
[1769517698426,0.00921883,88049.0,88036.0,0.11225814]
[1769517698626,0.00921883,88052.0,88038.0,0.00993814]
[1769517698826,0.011372,88051.0,88038.0,0.00993814]
[1769517699036,0.02059083,88051.0,88038.0,0.00993814]
[1769517699241,0.00921883,88051.0,88038.0,0.00993814]
[1769517699432,0.02059083,88051.0,88039.0,0.03618978]
[1769517699728,0.02059083,88051.0,88039.0,0.00993814]
[1769517699929,0.02059083,88051.0,88039.0,0.03618958]
[1769517700324,0.011372,88052.0,88040.0,0.12750081]
[1769517700837,0.011372,88052.0,88040.0,0.00993814]
[1769517701134,0.011372,88050.0,88040.0,0.12750081]
[1769517702234,0.011372,88052.0,88040.0,0.12750081]
[1769517702639,0.00921883,88055.0,88040.0,0.12750081]
[1769517703436,0.011372,88051.0,88040.0,0.00993814]
[1769517704438,0.011372,88049.0,88040.0,0.00993814]
[1769517704835,0.011372,88049.0,88039.0,0.02625064]
[1769517705136,0.011372,88047.0,88039.0,0.02625064]
[1769517706242,0.011373,88046.0,88039.0,0.02625064]
[1769517706741,0.00921883,88046.0,88039.0,0.02625064]
[1769517707144,0.02059183,88045.0,88039.0,0.02625064]
[1769517707335,0.10232,88051.0,88039.0,0.02625064]
[1769517707336,0.10232,88051.0,88039.0,6.4e-07]
[1769517707528,0.10232,88051.0,88036.0,0.10232]
[1769517707529,0.00921883,88045.0,88036.0,0.10232]
[1769517707732,0.02059183,88045.0,88036.0,0.10232]
[1769517708439,0.02059183,88045.0,88032.0,0.00993814]
[1769517708640,0.011373,88043.0,88033.0,0.01235556]
[1769517710044,0.02059183,88045.0,88033.0,0.01235556]
[1769517710541,0.29948,88057.0,88033.0,0.01235556]
[1769517710745,0.011372,88051.0,88034.0,0.00993814]
[1769517711045,0.22087353,88056.0,88034.0,0.00993814]
[1769517711046,0.011372,88049.0,88034.0,0.00993814]
[1769517711637,0.02059083,88054.0,88034.0,0.00993814]
[1769517711935,0.00921883,88054.0,88034.0,0.00993814]
[1769517712746,0.011372,88049.0,88034.0,0.00993814]
[1769517714546,0.011372,88051.0,88034.0,0.00993814]
[1769517715046,0.011372,88050.0,88034.0,0.00993814]
[1769517715846,0.02092974,88053.0,88035.0,0.00944467]
[1769517716047,0.00955774,88052.0,88035.0,0.00944467]
[1769517719251,0.00955774,88047.0,88035.0,0.00944467]
[1769517719549,0.00955774,88047.0,88033.0,0.00241742]
[1769517720450,0.011372,88053.0,88033.0,0.00241742]
[1769517720451,0.02093074,88044.0,88033.0,0.00241742]
[1769517722050,0.00955774,88043.0,88033.0,0.00241742]
[1769517722645,0.00955774,88042.0,88033.0,0.00241742]
[1769517724948,0.011373,88040.0,88033.0,0.00241742]
[1769517725146,0.00012315,88039.0,88028.0,0.00944467]
[1769517726654,0.01149715,88039.0,88028.0,0.00944467]
[1769517726856,0.00012315,88039.0,88028.0,0.00944467]
[1769517738268,0.011372,88053.0,88028.0,0.00944467]
[1769517738269,0.29948,88052.0,88041.0,0.00944467]
[1769517738566,0.011369,88070.0,88041.0,0.00944467]
[1769517738567,0.10232,88051.0,88041.0,0.00944467]
[1769517738770,0.10232,88050.0,88041.0,0.00944467]
[1769517739358,4.47e-05,88049.0,88041.0,0.00944467]
[1769517740969,0.10232,88050.0,88041.0,0.00944467]
[1769517745176,0.00957629,88070.0,88042.0,0.00931868]
[1769517745481,0.2195036,88069.0,88050.0,0.00931868]
[1769517745683,0.2195036,88069.0,88038.0,0.11357763]
[1769517745684,0.1171836,88068.0,88056.0,0.00931868]
[1769517745874,0.10232,88069.0,88056.0,0.00931868]
[1769517746173,0.10232,88069.0,88055.0,0.011371]
[1769517746378,0.10232,88069.0,88054.0,0.011371]
[1769517746875,0.10232,88069.0,88046.0,0.10232]
[1769517747973,0.10232,88069.0,88053.0,0.011372]
[1769517748168,0.10232,88069.0,88054.0,0.00931868]
[1769517751182,0.11369,88069.0,88054.0,0.00931868]
[1769517751481,0.10232,88069.0,88054.0,0.00931868]
[1769517751883,0.10232,88069.0,88055.0,0.00931868]
[1769517751884,0.11189629,88069.0,88055.0,0.00931868]
[1769517754385,0.00957629,88068.0,88055.0,0.00931868]
[1769517754783,0.00957629,88068.0,88055.0,0.00375772]
[1769517758690,0.00957629,88068.0,88055.0,0.01512872]
[1769517760686,0.00957629,88068.0,88055.0,0.00375772]
[1769517766504,0.00957629,88068.0,88055.0,0.01512872]
[1769517768006,0.00957629,88067.0,88055.0,0.00375772]
[1769517769206,0.00957629,88067.0,88051.0,0.00415477]
[1769517769801,0.00957629,88067.0,88052.0,0.011372]
[1769517770204,0.00957629,88067.0,88052.0,0.01552677]
[1769517771007,0.00957629,88067.0,88053.0,0.011372]
[1769517772509,0.00957629,88067.0,88055.0,0.011371]
[1769517774406,0.00957629,88067.0,88052.0,0.00415477]
[1769517774407,0.00957629,88067.0,88053.0,0.011372]
[1769517774598,0.00957629,88067.0,88052.0,0.00415477]
[1769517774802,0.00957629,88067.0,88055.0,0.011371]
[1769517776713,0.00957629,88067.0,88057.0,0.011371]
[1769517776912,0.00957629,88067.0,88058.0,0.011371]
[1769517777604,0.11755579,88090.0,88058.0,0.00972363]
[1769517777803,0.011368,88080.0,88064.0,0.01137]
[1769517778003,0.11540693,88079.0,88064.0,0.01137]
[1769517778312,0.11540693,88078.0,88064.0,0.01137]
[1769517778613,0.11540693,88077.0,88064.0,0.01137]
[1769517778812,0.11540693,88076.0,88064.0,0.01137]
[1769517779013,0.11540693,88075.0,88064.0,0.01137]
[1769517779202,0.11540693,88074.0,88064.0,0.01137]
[1769517779404,0.11540693,88073.0,88064.0,0.01137]
[1769517779604,0.11540693,88072.0,88064.0,0.01137]
[1769517779904,0.10232,88071.0,88064.0,0.01137]
[1769517781011,0.00945391,88074.0,88065.0,0.01137]
[1769517781215,0.10232,88075.0,88063.0,0.00972363]
[1769517781607,0.10232,88075.0,88067.0,0.01137]
[1769517782322,0.10232,88075.0,88064.0,0.01137]
[1769517783118,0.11177391,88075.0,88064.0,0.01137]
[1769517783314,0.00945391,88074.0,88064.0,0.01137]
[1769517784518,0.00945391,88074.0,88061.0,0.01137]
[1769517788024,0.00945391,88074.0,88063.0,0.01137]
[1769517788425,0.00945391,88074.0,88060.0,0.12892679]
[1769517788724,0.00945391,88074.0,88061.0,0.01137]
[1769517789927,0.00945391,88073.0,88059.0,0.00972363]
[1769517790225,0.00945391,88073.0,88057.0,0.011371]
[1769517795222,0.00945391,88073.0,88057.0,0.02109463]
[1769517795821,0.02082291,88073.0,88057.0,0.02109463]
[1769517796029,0.00945391,88072.0,88057.0,0.02109463]
[1769517796319,0.00945391,88072.0,88051.0,0.10232]
[1769517796320,0.00945391,88065.0,88051.0,0.113692]
[1769517797015,0.00945391,88065.0,88051.0,0.10232]
[1769517798124,0.011371,88060.0,88051.0,0.10232]
[1769517798327,0.2994,88067.0,88044.0,0.00972363]
[1769517798328,0.00945391,88056.0,88044.0,0.00972363]
[1769517799923,0.00945391,88056.0,88045.0,0.00972363]
[1769517801326,0.00945391,88060.0,88045.0,0.00972363]
[1769517802227,0.011371,88059.0,88045.0,0.00972363]
[1769517803228,0.00912531,88058.0,88041.0,0.12275508]
[1769517803931,0.00912531,88053.0,88041.0,0.10232]
[1769517804126,0.00912531,88050.0,88041.0,0.10232]
[1769517804518,0.00912531,88050.0,88035.0,0.00913485]
[1769517804931,0.00912531,88050.0,88036.0,0.00913485]
[1769517808020,0.00975646,88048.0,88032.0,0.00913485]